bitfinex/quotes_BTCUSD_20230905
["timestamp","ask_amount","ask_price","bid_price","bid_amount"]
[1693950567472,0.06,25751.0,25745.0,1.553668]
[1693950567721,0.06,25751.0,25743.0,0.91647153]
[1693950567722,0.1025,25746.0,25743.0,1.78642388]
[1693950567919,0.1025,25746.0,25744.0,0.7]
[1693950567920,0.776829,25746.0,25744.0,0.7]
[1693950568123,0.2578642,25745.0,25744.0,0.7]
[1693950568325,0.2578642,25745.0,25742.0,1.017416]
[1693950568326,1.8115622,25745.0,25742.0,1.017416]
[1693950568605,0.1025,25743.0,25742.0,1.017416]
[1693950569916,0.1025,25743.0,25742.0,1.795356]
[1693950571080,0.1025,25743.0,25742.0,1.79569694]
[1693950571701,0.1025,25743.0,25742.0,1.79769694]
[1693950579662,0.1025,25743.0,25742.0,1.8216516]
[1693950580596,0.1025,25744.0,25742.0,1.8216516]
[1693950581391,0.1025,25744.0,25742.0,1.8196516]
[1693950581596,0.1025,25744.0,25742.0,1.8186516]
[1693950581805,0.1025,25744.0,25742.0,1.8206516]
[1693950582005,0.1025,25744.0,25742.0,1.8216516]
[1693950583391,0.1025,25744.0,25742.0,1.8066516]
[1693950583949,0.1025,25743.0,25742.0,1.8066516]
[1693950584818,0.1025,25743.0,25742.0,1.8046516]
[1693950585234,0.1025,25743.0,25742.0,1.8056516]
[1693950585452,0.1025,25743.0,25742.0,1.8066516]
[1693950593312,0.1025,25744.0,25742.0,1.8066516]
[1693950594298,0.1025,25744.0,25742.0,1.8046516]
[1693950594513,0.1025,25744.0,25742.0,1.0297116]
[1693950594634,0.1025,25744.0,25742.0,1.0287116]
[1693950595040,0.1025,25744.0,25742.0,1.0297116]
[1693950595612,0.1025,25744.0,25742.0,0.2677956]
[1693950596805,0.16838199,25744.0,25742.0,0.2677956]
[1693950598281,0.94526499,25744.0,25742.0,0.2677956]
[1693950599446,0.94526499,25744.0,25742.0,0.0272956]
[1693950601082,0.879383,25744.0,25742.0,0.0272956]
[1693950616221,1.656266,25744.0,25742.0,0.0272956]
[1693950623473,2.433149,25744.0,25742.0,0.0272956]
[1693950628026,2.52638629,25744.0,25742.0,0.0272956]
[1693950631381,1.69369779,25743.0,25742.0,0.0272956]
[1693950631580,1.82016971,25743.0,25742.0,0.0272956]
[1693950632359,1.82016971,25743.0,25742.0,0.0262956]
[1693950632586,1.82016971,25743.0,25742.0,0.0272956]
[1693950632787,1.91339779,25743.0,25742.0,0.0272956]
[1693950633027,1.91339779,25743.0,25742.0,0.0252956]
[1693950633433,1.91339779,25743.0,25742.0,0.0272956]
[1693950633638,1.78692587,25743.0,25742.0,0.0272956]
[1693950633843,1.64704808,25743.0,25742.0,0.0272956]
[1693950638806,1.55382,25743.0,25742.0,0.0272956]
[1693950639037,1.64704808,25743.0,25742.0,0.0272956]
[1693950641800,2.91310335,25743.0,25742.0,0.0272956]
[1693950642175,3.05298114,25743.0,25742.0,0.0272956]
[1693950642534,3.05298114,25743.0,25742.0,0.0252956]
[1693950642995,3.05898114,25743.0,25742.0,0.0252956]
[1693950643365,3.05898114,25743.0,25742.0,0.0242956]
[1693950643595,3.06598114,25743.0,25742.0,0.0242956]
[1693950643751,2.92610335,25743.0,25742.0,0.0242956]
[1693950644213,3.06598114,25743.0,25742.0,0.0242956]
[1693950644663,2.92610335,25743.0,25742.0,0.0242956]
[1693950647580,2.92610335,25743.0,25742.0,0.12946333]
[1693950647960,3.01275306,25743.0,25742.0,0.0242956]
[1693950648772,3.39939833,25743.0,25742.0,0.0242956]
[1693950649730,3.39339833,25743.0,25742.0,0.0242956]
[1693950649937,3.38639833,25743.0,25742.0,0.0242956]
[1693950650104,3.40039833,25743.0,25742.0,0.0252956]
[1693950650307,3.42039833,25743.0,25742.0,0.0272956]
[1693950650647,3.42039833,25743.0,25742.0,0.0252956]
[1693950650648,3.40039833,25743.0,25742.0,0.0252956]
[1693950650833,3.42039833,25743.0,25742.0,0.0272956]
[1693950651350,3.40639833,25743.0,25742.0,0.0262956]
[1693950651561,3.38639833,25743.0,25742.0,0.0262956]
[1693950651728,3.40039833,25743.0,25742.0,0.0282956]
[1693950653580,3.49357527,25743.0,25742.0,0.0282956]
[1693950653754,3.49357393,25743.0,25742.0,0.0282956]
[1693950655033,3.40039833,25743.0,25742.0,0.0282956]
[1693950655230,3.58690206,25743.0,25742.0,0.0282956]
[1693950656992,3.44702427,25743.0,25742.0,0.0282956]
[1693950657198,3.5867844,25743.0,25742.0,0.0282956]
[1693950659088,3.52803611,25743.0,25742.0,0.0282956]
[1693950659473,3.58678024,25743.0,25742.0,0.0282956]
[1693950662036,3.52819121,25743.0,25742.0,0.0282956]
[1693950662232,3.44702427,25743.0,25742.0,0.0282956]
[1693950663181,3.58678013,25743.0,25742.0,0.0282956]
[1693950663748,3.44702427,25743.0,25742.0,0.0282956]
[1693950663983,3.58677994,25743.0,25742.0,0.0282956]
[1693950667712,3.44702427,25743.0,25742.0,0.0282956]
[1693950669534,3.26052054,25743.0,25742.0,0.0282956]
[1693950669732,3.44687856,25743.0,25742.0,0.0282956]
[1693950670370,3.52695304,25743.0,25742.0,0.0282956]
[1693950671521,3.44687856,25743.0,25742.0,0.0282956]
[1693950671746,3.52702772,25743.0,25742.0,0.0282956]
[1693950672404,3.44690325,25743.0,25742.0,0.0282956]
[1693950672813,3.5264219,25743.0,25742.0,0.0282956]
[1693950675029,3.75940028,25743.0,25742.0,0.0282956]
[1693950675229,3.5264219,25743.0,25742.0,0.0282956]
[1693950675861,3.73940028,25743.0,25742.0,0.0282956]
[1693950679222,3.55301757,25743.0,25742.0,0.0282956]
[1693950682766,1.22228757,25743.0,25742.0,0.0282956]
[1693950682966,3.3528503,25743.0,25742.0,0.0282956]
[1693950683894,3.1663723,25743.0,25742.0,0.0282956]
[1693950684612,3.18022289,25743.0,25742.0,0.0282956]
[1693950684766,2.79357762,25743.0,25742.0,0.0282956]
[1693950684969,2.60709301,25743.0,25742.0,0.0282956]
[1693950685169,2.99373828,25743.0,25742.0,0.0282956]
[1693950685843,3.18022289,25743.0,25742.0,0.0282956]
[1693950687032,1.05327301,25743.0,25742.0,0.0282956]
[1693950687854,1.23975762,25743.0,25742.0,0.0282956]
[1693950688065,2.01666762,25743.0,25742.0,0.0282956]
[1693950688964,1.83018301,25743.0,25742.0,0.0282956]
[1693950690163,2.01666762,25743.0,25742.0,0.0282956]
[1693950691308,1.83018301,25743.0,25742.0,0.0282956]
[1693950691544,2.60709301,25743.0,25742.0,0.0282956]
[1693950692570,2.78716681,25743.0,25742.0,0.0282956]
[1693950694357,2.79357762,25743.0,25742.0,0.0282956]
[1693950695644,2.60709301,25743.0,25742.0,0.0282956]
[1693950696038,2.79357762,25743.0,25742.0,0.0282956]
[1693950698689,2.79358704,25743.0,25742.0,0.0282956]
[1693950698895,2.65371461,25743.0,25742.0,0.0282956]
[1693950699509,2.79358662,25743.0,25742.0,0.0282956]
[1693950701024,2.69108662,25743.0,25742.0,0.0282956]
[1693950706971,2.55121461,25743.0,25742.0,0.0282956]
[1693950707168,2.63064529,25743.0,25742.0,0.0282956]
[1693950709611,2.55121461,25743.0,25742.0,0.0282956]
[1693950712102,2.63123708,25743.0,25742.0,0.0282956]
[1693950722451,3.11609843,25743.0,25742.0,0.0282956]
[1693950722766,3.73572208,25743.0,25742.0,0.0282956]
[1693950722971,3.31625909,25743.0,25742.0,0.0282956]
[1693950725880,3.54937925,25743.0,25742.0,0.0282956]
[1693950746781,3.1670179,25743.0,25742.0,0.0282956]
[1693950747015,1.95682864,25743.0,25742.0,0.0282956]
[1693950747231,0.22048617,25743.0,25742.0,0.0282956]
[1693950747616,0.36035142,25743.0,25742.0,0.8052356]
[1693950748588,0.36035142,25743.0,25742.0,0.0282956]
[1693950750844,0.36035142,25743.0,25742.0,0.02795466]
[1693950751046,0.36035142,25743.0,25742.0,0.02832003]
[1693950751441,0.17386525,25743.0,25742.0,0.02832003]
[1693950751647,0.95077525,25743.0,25742.0,0.02832003]
[1693950753984,0.95076269,25743.0,25742.0,0.02832003]
[1693950756612,0.95076269,25743.0,25742.0,0.15512368]
[1693950756812,1.04399261,25743.0,25742.0,0.15512368]
[1693950758232,0.12722992,25743.0,25742.0,0.15512368]
[1693950758437,0.12722992,25743.0,25742.0,0.93206368]
[1693950758667,0.12722992,25743.0,25742.0,1.70900368]
[1693950758870,0.12722992,25743.0,25742.0,0.15512368]
[1693950759623,0.12722992,25743.0,25742.0,0.13116902]
[1693950760195,0.12722992,25743.0,25742.0,0.15521293]
[1693950760632,0.12722992,25743.0,25742.0,0.93215293]
[1693950761768,0.034,25743.0,25742.0,0.93215293]
[1693950767971,0.034,25743.0,25742.0,2.48603293]
[1693950768937,0.034,25743.0,25742.0,2.48403293]
[1693950768938,0.02,25743.0,25742.0,2.48403293]
[1693950769199,0.026,25743.0,25742.0,2.48403293]
[1693950769412,0.006,25743.0,25742.0,2.48203293]
[1693950769718,0.013,25743.0,25742.0,2.48203293]
[1693950771563,0.013,25743.0,25742.0,2.98036804]
[1693950773093,0.013,25743.0,25742.0,3.08286804]
[1693950779121,0.013,25743.0,25742.0,3.06286804]
[1693950779346,0.013,25743.0,25742.0,3.08286804]
[1693950780188,0.013,25743.0,25742.0,3.06286804]
[1693950780482,0.013,25743.0,25742.0,3.08286804]
[1693950782359,0.013,25743.0,25742.0,2.86437455]
[1693950782580,0.013,25743.0,25742.0,3.12721771]
[1693950783153,0.013,25743.0,25742.0,3.02471771]
[1693950785598,0.013,25743.0,25742.0,3.0361785]
[1693950787165,0.013,25743.0,25742.0,3.0211785]
[1693950787364,0.013,25743.0,25742.0,3.03580695]
[1693950788216,0.013,25743.0,25742.0,3.03640067]
[1693950791091,0.013,25743.0,25742.0,2.77355751]
[1693950792228,0.013,25743.0,25742.0,3.01390049]
[1693950792578,0.013,25743.0,25742.0,2.77355751]
[1693950793443,0.013,25743.0,25742.0,3.06874059]
[1693950794404,0.013,25743.0,25742.0,2.77355751]
[1693950794604,0.013,25743.0,25742.0,2.9861241]
[1693950795644,0.013,25743.0,25742.0,2.77355751]
[1693950795895,0.013,25743.0,25742.0,2.99725988]
[1693950796821,0.013,25743.0,25742.0,2.77355751]
[1693950797481,0.013,25743.0,25742.0,3.05597304]
[1693950802338,0.013,25743.0,25742.0,3.053179]
[1693950802525,0.013,25743.0,25742.0,2.77355751]
[1693950803789,0.013,25743.0,25742.0,3.00626801]
[1693950803993,0.013,25743.0,25742.0,2.77355751]
[1693950805071,0.013,25743.0,25742.0,3.06886908]
[1693950805275,0.013,25743.0,25742.0,2.77355751]
[1693950806421,0.013,25743.0,25742.0,2.98890557]
[1693950809286,0.013,25743.0,25742.0,2.77355751]
[1693950809863,0.013,25743.0,25742.0,3.01879424]
[1693950812368,0.013,25743.0,25742.0,2.77355751]
[1693950814288,0.013,25743.0,25742.0,2.98434308]
[1693950814723,0.013,25743.0,25742.0,2.77355751]
[1693950815102,0.013,25743.0,25742.0,3.00980246]
[1693950815647,0.013,25743.0,25742.0,2.77355751]
[1693950815782,0.013,25743.0,25742.0,3.04474374]
[1693950816388,0.013,25743.0,25742.0,2.77355751]
[1693950816608,0.013,25743.0,25742.0,3.06423255]
[1693950816808,0.013,25743.0,25742.0,2.77355751]
[1693950817237,0.013,25743.0,25742.0,3.05692084]
[1693950817440,0.013,25743.0,25742.0,2.77355751]
[1693950819359,0.013,25743.0,25742.0,3.018315]
[1693950820358,0.013,25743.0,25742.0,2.77355751]
[1693950820560,0.013,25743.0,25742.0,2.99440441]
[1693950824511,0.013,25743.0,25742.0,2.77355751]
[1693950824919,0.013,25743.0,25742.0,3.06111542]
[1693950825929,0.013,25743.0,25742.0,2.77355751]
[1693950827033,0.006,25743.0,25742.0,2.77355751]
[1693950827237,0.006,25743.0,25742.0,2.77555751]
[1693950827638,0.09313285,25745.0,25742.0,3.03636197]
[1693950827846,0.09313285,25745.0,25744.0,1.55376]
[1693950828623,0.09313285,25745.0,25744.0,1.57733273]
[1693950828796,0.09913285,25745.0,25744.0,1.57733273]
[1693950828999,0.11713285,25745.0,25744.0,1.57933273]
[1693950829157,0.11113285,25745.0,25744.0,1.57992713]
[1693950829558,0.12413285,25745.0,25744.0,1.58192713]
[1693950829946,0.031,25745.0,25744.0,1.58192713]
[1693950831241,0.031,25745.0,25744.0,1.80291023]
[1693950847680,0.031,25745.0,25744.0,1.79291023]
[1693950869437,0.12413285,25745.0,25744.0,1.79291023]
[1693950871889,0.031,25745.0,25744.0,1.79291023]
[1693950872703,0.12413285,25745.0,25744.0,1.79291023]
[1693950873184,0.031,25745.0,25744.0,1.79291023]
[1693950873686,0.12413285,25745.0,25744.0,1.79291023]
[1693950882635,0.12413285,25745.0,25744.0,1.82386817]
[1693950887972,0.02702662,25745.0,25744.0,1.82386817]
[1693950902623,0.02702662,25745.0,25744.0,1.79291023]
[1693950933623,0.05140062,25745.0,25744.0,1.79291023]
[1693950937489,0.11755956,25745.0,25744.0,1.79291023]
[1693950940558,0.11755956,25745.0,25744.0,1.82427524]
[1693950944434,0.11755956,25745.0,25744.0,0.02816713]
[1693950944435,2.44810656,25745.0,25744.0,0.02816713]
[1693950944636,2.69038367,25745.0,25744.0,0.02816713]
[1693950945206,2.59719935,25745.0,25744.0,0.02816713]
[1693950947761,2.6903711,25745.0,25744.0,0.02816713]
[1693950950202,1.82035035,25745.0,25744.0,0.02816713]
[1693950950792,1.81101668,25745.0,25744.0,0.02816713]
[1693950956916,1.03416768,25745.0,25744.0,0.02816713]
[1693950959645,0.25731868,25745.0,25744.0,0.02816713]
[1693950977552,0.25731868,25745.0,25744.0,0.80504713]
[1693950985180,0.25726981,25745.0,25744.0,0.80504713]
[1693950988728,0.16411149,25745.0,25744.0,0.80504713]
[1693950991580,0.16411149,25745.0,25744.0,1.58192713]
[1693950994743,0.25729748,25745.0,25744.0,1.58192713]
[1693950999747,0.11755999,25745.0,25744.0,1.58192713]
[1693951008495,0.11755999,25745.0,25744.0,1.5583544]
[1693951008700,0.11755999,25745.0,25744.0,1.58156207]
[1693951009137,0.11755999,25745.0,25744.0,1.58155367]
[1693951012478,0.11753629,25745.0,25744.0,1.58155367]
[1693951017708,0.11753603,25745.0,25744.0,1.58155367]
[1693951025192,0.024374,25745.0,25744.0,1.58155367]
[1693951026314,0.024374,25745.0,25744.0,0.80467367]
[1693951027808,0.11753088,25745.0,25744.0,0.80467367]
[1693951068053,0.2572662,25745.0,25744.0,0.80467367]
[1693951068236,0.11753088,25745.0,25744.0,0.80467367]
[1693951073381,0.11753088,25745.0,25744.0,1.58155367]
[1693951090593,0.11753088,25745.0,25744.0,2.59465028]
[1693951090793,0.11753088,25745.0,25744.0,1.81777028]
[1693951103958,0.024374,25745.0,25744.0,1.81777028]
[1693951112338,0.024374,25745.0,25744.0,2.59465028]
[1693951122256,0.024374,25745.0,25744.0,1.81777028]
[1693951122662,0.024374,25745.0,25744.0,2.59465028]
[1693951133934,0.024374,25745.0,25744.0,1.81777028]
[1693951134978,0.024374,25745.0,25744.0,2.59465028]
[1693951136224,0.024374,25745.0,25744.0,1.81777028]
[1693951188686,0.024374,25745.0,25744.0,1.79456261]
[1693951188929,0.024374,25745.0,25744.0,1.81658539]
[1693951189066,0.024374,25745.0,25744.0,1.81658571]
[1693951201171,0.02355847,25745.0,25744.0,1.81658571]
[1693951209485,0.02355847,25745.0,25744.0,2.59346571]
[1693951210802,0.02355847,25745.0,25744.0,1.81658571]
[1693951211858,0.02355847,25745.0,25744.0,2.59346571]
[1693951214506,0.02355847,25745.0,25744.0,1.81658571]
[1693951226808,0.02355847,25745.0,25744.0,1.5803691]
[1693951286347,0.11674493,25745.0,25744.0,1.5803691]
[1693951286960,0.02355847,25745.0,25744.0,1.5803691]
[1693951288364,0.11674493,25745.0,25744.0,1.5803691]
[1693951288571,0.02355847,25745.0,25744.0,1.5803691]
[1693951290515,0.11674493,25745.0,25744.0,1.5803691]
[1693951291081,0.11674493,25745.0,25744.0,0.8034891]
[1693951291499,1.29964731,25745.0,25744.0,0.0266091]
[1693951291711,3.62388241,25745.0,25744.0,0.0266091]
[1693951291927,4.47105544,25745.0,25744.0,0.0266091]
[1693951292206,4.47105544,25745.0,25744.0,0.02602278]
[1693951292663,4.75094306,25745.0,25744.0,0.02402278]
[1693951292858,4.82480306,25745.0,25744.0,0.02202278]
[1693951293066,4.84714306,25745.0,25744.0,0.02402278]
[1693951293272,4.84638306,25745.0,25744.0,0.02402278]
[1693951293480,4.84626306,25745.0,25744.0,0.02402278]
[1693951293687,4.54275544,25745.0,25744.0,0.02202278]
[1693951293891,4.54525426,25745.0,25744.0,0.02202278]
[1693951294069,4.56485426,25745.0,25744.0,0.02402278]
[1693951294266,4.56359426,25745.0,25744.0,0.02402278]
[1693951294471,4.56371426,25745.0,25744.0,0.02402278]
[1693951294682,4.58533426,25745.0,25744.0,0.02602278]
[1693951294825,4.58713426,25745.0,25744.0,0.02602278]
[1693951295038,4.58689426,25745.0,25744.0,0.02602278]
[1693951295237,4.58701426,25745.0,25744.0,0.02602278]
[1693951295457,4.58731426,25745.0,25744.0,0.02602278]
[1693951295623,4.58629426,25745.0,25744.0,0.02602278]
[1693951295818,4.58605426,25745.0,25744.0,0.02602278]
[1693951296141,4.58665426,25745.0,25744.0,0.02602278]
[1693951296351,4.58701426,25745.0,25744.0,0.02602278]
[1693951296556,4.58629426,25745.0,25744.0,0.02602278]
[1693951296756,4.58575426,25745.0,25744.0,0.02602278]
[1693951296935,4.58503426,25745.0,25744.0,0.02602278]
[1693951297134,4.58395426,25745.0,25744.0,0.02602278]
[1693951297347,4.58611426,25745.0,25744.0,0.02602278]
[1693951297548,4.58671426,25745.0,25744.0,0.02602278]
[1693951297752,4.58677426,25745.0,25744.0,0.02602278]
[1693951298167,4.58695426,25745.0,25744.0,0.02602278]
[1693951298369,4.58605426,25745.0,25744.0,0.02602278]
[1693951298591,4.58587426,25745.0,25744.0,0.02602278]
[1693951298799,4.81823924,25745.0,25744.0,0.02602278]
[1693951299035,4.58473426,25745.0,25744.0,0.02602278]
[1693951299232,4.81727835,25745.0,25744.0,0.02602278]
[1693951299441,4.81817835,25745.0,25744.0,0.02602278]
[1693951299684,4.81919835,25745.0,25744.0,0.02602278]
[1693951299887,4.81925835,25745.0,25744.0,0.02602278]
[1693951300097,4.81931835,25745.0,25744.0,0.02602278]
[1693951300294,4.81721835,25745.0,25744.0,0.02602278]
[1693951300705,4.81823835,25745.0,25744.0,0.02602278]
[1693951300904,4.81949835,25745.0,25744.0,0.02602278]
[1693951301135,4.81877835,25745.0,25744.0,0.02602278]
[1693951301502,4.93683575,25745.0,25744.0,0.02602278]
[1693951302062,5.00217575,25745.0,25744.0,0.02602278]
[1693951302271,5.00223575,25745.0,25744.0,0.02602278]
[1693951302479,4.76945166,25745.0,25744.0,0.02602278]
[1693951302680,4.70417166,25745.0,25744.0,0.02602278]
[1693951303540,4.63176881,25745.0,25744.0,0.02602278]
[1693951303943,4.70379512,25745.0,25744.0,0.02602278]
[1693951304319,4.63176881,25745.0,25744.0,0.02602278]
[1693951304523,4.77125931,25745.0,25744.0,0.02602278]
[1693951305553,4.58522191,25745.0,25744.0,0.02602278]
[1693951305931,4.23808092,25745.0,25744.0,0.02602278]
[1693951306132,4.12509974,25745.0,25744.0,0.02602278]
[1693951306762,4.12509974,25745.0,25744.0,0.19755661]
[1693951306763,0.06855847,25745.0,25744.0,0.19755661]
[1693951307359,1.62225647,25745.0,25744.0,0.19755661]
[1693951308197,2.88825074,25745.0,25744.0,0.02602278]
[1693951308370,3.21383909,25745.0,25744.0,0.02602278]
[1693951309023,3.23383909,25745.0,25744.0,0.02602278]
[1693951315119,3.27383909,25745.0,25744.0,0.02602278]
[1693951315328,3.36682027,25745.0,25744.0,0.02602278]
[1693951315532,3.50631077,25745.0,25744.0,0.02602278]
[1693951316385,3.18072242,25745.0,25744.0,0.02602278]
[1693951316603,3.04123192,25745.0,25744.0,0.02602278]
[1693951320070,2.94825074,25745.0,25744.0,0.02602278]
[1693951320289,3.04123192,25745.0,25744.0,0.02602278]
[1693951322484,3.50774124,25745.0,25744.0,0.02602278]
[1693951322710,3.97046651,25745.0,25744.0,0.02602278]
[1693951322916,3.89438651,25745.0,25744.0,0.02602278]
[1693951323330,3.84938651,25745.0,25744.0,0.02202278]
[1693951323540,3.87338651,25745.0,25744.0,0.02402278]
[1693951323747,3.87338651,25745.0,25744.0,0.02602278]
[1693951323748,3.89738651,25745.0,25744.0,0.02602278]
[1693951323982,3.84938651,25745.0,25744.0,0.02202278]
[1693951324207,3.87338651,25745.0,25744.0,0.02402278]
[1693951324619,4.05942391,25745.0,25744.0,0.02402278]
[1693951325528,4.08342391,25745.0,25744.0,0.02602278]
[1693951328551,3.94393341,25745.0,25744.0,0.02602278]
[1693951329676,3.55728814,25745.0,25744.0,0.004]
[1693951330159,3.49083614,25745.0,25744.0,0.004]
[1693951330370,3.49083614,25745.0,25744.0,0.03277261]
[1693951331533,3.67687354,25745.0,25744.0,0.03277261]
[1693951331735,3.69687354,25745.0,25744.0,0.03277261]
[1693951331935,3.51083614,25745.0,25744.0,0.03277261]
[1693951332556,3.69687354,25745.0,25744.0,0.03277261]
[1693951333482,3.55728814,25745.0,25744.0,0.03277261]
[1693951333878,3.62577063,25745.0,25744.0,0.03277261]
[1693951334085,3.55728814,25745.0,25744.0,0.03277261]
[1693951334287,3.62577232,25745.0,25744.0,0.03277261]
[1693951334808,3.85843641,25745.0,25744.0,0.03277261]
[1693951334987,3.62577232,25745.0,25744.0,0.03277261]
[1693951335398,3.67239901,25745.0,25744.0,0.03277261]
[1693951336258,3.59239901,25745.0,25744.0,0.03277261]
[1693951336471,3.44608929,25745.0,25744.0,0.03277261]
[1693951336683,2.88841939,25745.0,25744.0,0.004]
[1693951336887,3.10819538,25745.0,25744.0,0.004]
[1693951337095,3.10819538,25745.0,25744.0,0.03274632]
[1693951338190,3.08419538,25745.0,25744.0,0.03074632]
[1693951338397,3.10819538,25745.0,25744.0,0.03274632]
[1693951338573,3.08419538,25745.0,25744.0,0.03074632]
[1693951339602,3.10819538,25745.0,25744.0,0.03274632]
[1693951348503,2.96841939,25745.0,25744.0,0.03274632]
[1693951351553,3.03732289,25745.0,25744.0,0.03274632]
[1693951352219,2.95732289,25745.0,25744.0,0.03274632]
[1693951352611,2.88841939,25745.0,25744.0,0.03274632]
[1693951352850,3.02821445,25745.0,25744.0,0.03274632]
[1693951353681,2.88841939,25745.0,25744.0,0.03274632]
[1693951355669,2.96841939,25745.0,25744.0,0.03274632]
[1693951358130,3.97937136,25745.0,25744.0,0.03274632]
[1693951358769,3.97937136,25745.0,25744.0,0.004]
[1693951359590,3.74670727,25745.0,25744.0,0.004]
[1693951373113,3.74670727,25745.0,25744.0,0.03275444]
[1693951376127,3.360062,25745.0,25744.0,0.03275444]
[1693951376338,3.340062,25745.0,25744.0,0.03275444]
[1693951378125,3.27125074,25745.0,25744.0,0.03275444]
[1693951378323,3.37434006,25745.0,25744.0,0.03275444]
[1693951380308,3.35434006,25745.0,25744.0,0.03275444]
[1693951380630,3.74098533,25745.0,25744.0,0.03275444]
[1693951387421,3.74098533,25745.0,25744.0,0.02775444]
[1693951395409,3.76098533,25745.0,25744.0,0.02775444]
[1693951398709,3.35434006,25745.0,25744.0,0.02775444]
[1693951398935,3.038179,25745.0,25744.0,0.02775444]
[1693951399141,3.098179,25745.0,25744.0,0.02775444]
[1693951402683,3.038179,25745.0,25744.0,0.02775444]
[1693951402882,3.098179,25745.0,25744.0,0.02775444]
[1693951408745,3.098179,25745.0,25744.0,0.26225602]
[1693951408746,0.407632,25745.0,25744.0,0.26225602]
[1693951408951,1.96133,25745.0,25744.0,0.26225602]
[1693951409185,2.14771472,25745.0,25744.0,0.26225602]
[1693951409366,2.12371472,25745.0,25744.0,0.26225602]
[1693951409590,1.89073051,25745.0,25744.0,0.26225602]
[1693951409797,1.89073051,25745.0,25744.0,0.26425602]
[1693951410374,1.91473051,25745.0,25744.0,0.26625602]
[1693951412087,3.22706767,25745.0,25744.0,0.03175444]
[1693951412246,3.61371294,25745.0,25744.0,0.03175444]
[1693951412445,4.59635773,25745.0,25744.0,0.03175444]
[1693951412662,4.90846854,25745.0,25744.0,0.004]
[1693951412861,4.90666854,25745.0,25744.0,0.004]
[1693951413083,4.90852854,25745.0,25744.0,0.004]
[1693951413285,4.90786854,25745.0,25744.0,0.004]
[1693951413506,4.90630854,25745.0,25744.0,0.004]
[1693951413706,4.90714854,25745.0,25744.0,0.004]
[1693951413936,4.90564854,25745.0,25744.0,0.004]
[1693951414140,4.90330854,25745.0,25744.0,0.004]
[1693951414367,4.90282854,25745.0,25744.0,0.004]
[1693951414515,4.90204854,25745.0,25744.0,0.004]
[1693951414773,4.88156854,25745.0,25744.0,0.004]
[1693951414938,4.88102854,25745.0,25744.0,0.004]
[1693951415135,4.88006854,25745.0,25744.0,0.004]
[1693951415368,4.87952854,25745.0,25744.0,0.004]
[1693951415593,4.87910854,25745.0,25744.0,0.004]
[1693951415749,4.87874854,25745.0,25744.0,0.004]
[1693951415951,4.87790854,25745.0,25744.0,0.004]
[1693951416369,4.87736854,25745.0,25744.0,0.004]
[1693951416563,4.87688854,25745.0,25744.0,0.004]
[1693951416770,4.87178854,25745.0,25744.0,0.004]
[1693951416945,4.84914854,25745.0,25744.0,0.004]
[1693951417182,4.86824854,25745.0,25744.0,0.004]
[1693951417449,4.86962854,25745.0,25744.0,0.004]
[1693951417655,4.86884854,25745.0,25744.0,0.004]
[1693951417807,4.86824854,25745.0,25744.0,0.004]
[1693951418010,4.86788854,25745.0,25744.0,0.004]
[1693951418212,4.86758854,25745.0,25744.0,0.004]
[1693951418477,4.86728854,25745.0,25744.0,0.004]
[1693951418778,4.86518854,25745.0,25744.0,0.004]
[1693951418986,4.86644854,25745.0,25744.0,0.004]
[1693951419140,4.86620854,25745.0,25744.0,0.004]
[1693951419342,4.86596854,25745.0,25744.0,0.004]
[1693951419660,4.86710854,25745.0,25744.0,0.004]
[1693951419865,4.86482854,25745.0,25744.0,0.004]
[1693951420027,4.86404854,25745.0,25744.0,0.004]
[1693951420227,4.86374854,25745.0,25744.0,0.004]
[1693951420455,4.86344854,25745.0,25744.0,0.004]
[1693951420726,4.86302854,25745.0,25744.0,0.004]
[1693951420922,4.86278854,25745.0,25744.0,0.004]
[1693951421122,4.79726854,25745.0,25744.0,0.004]
[1693951421401,4.92960854,25745.0,25744.0,0.004]
[1693951421603,4.90328914,25745.0,25744.0,0.004]
[1693951421806,4.90340914,25745.0,25744.0,0.004]
[1693951422030,4.90148914,25745.0,25744.0,0.004]
[1693951422204,4.87724914,25745.0,25744.0,0.002]
[1693951422433,5.17825748,25745.0,25744.0,0.003]
[1693951422645,4.96440434,25745.0,25744.0,0.001]
[1693951422852,5.18371358,25745.0,25744.0,0.002]
[1693951423054,4.90424524,25745.0,25744.0,0.002]
[1693951423261,4.88006524,25745.0,25744.0,0.001]
[1693951423462,4.90382524,25745.0,25744.0,0.002]
[1693951423613,5.34085563,25745.0,25744.0,0.002]
[1693951423791,5.34313563,25745.0,25744.0,0.002]
[1693951423998,5.34421563,25745.0,25744.0,0.002]
[1693951424224,5.06216524,25745.0,25744.0,0.002]
[1693951424637,5.12099002,25745.0,25744.0,0.001]
[1693951424854,5.11781002,25745.0,25744.0,0.001]
[1693951425054,5.11763002,25745.0,25744.0,0.001]
[1693951425333,5.13989002,25745.0,25744.0,0.002]
[1693951425506,5.11081498,25745.0,25744.0,0.002]
[1693951425708,5.11069498,25745.0,25744.0,0.002]
[1693951425925,5.17139396,25745.0,25744.0,0.002]
[1693951426094,5.17121396,25745.0,25744.0,0.002]
[1693951426279,5.17109396,25745.0,25744.0,0.002]
[1693951426637,5.11003498,25745.0,25744.0,0.002]
[1693951426811,5.10937498,25745.0,25744.0,0.002]
[1693951427163,5.10901498,25745.0,25744.0,0.002]
[1693951427438,5.10793498,25745.0,25744.0,0.002]
[1693951427658,5.10763498,25745.0,25744.0,0.002]
[1693951427864,5.10829498,25745.0,25744.0,0.002]
[1693951428089,5.10817498,25745.0,25744.0,0.002]
[1693951428268,5.10799498,25745.0,25744.0,0.002]
[1693951428563,5.10775498,25745.0,25744.0,0.002]
[1693951428768,5.10649498,25745.0,25744.0,0.002]
[1693951428974,5.10259498,25745.0,25744.0,0.002]
[1693951429183,5.10487498,25745.0,25744.0,0.002]
[1693951429478,5.10451498,25745.0,25744.0,0.002]
[1693951429681,5.10409498,25745.0,25744.0,0.002]
[1693951429910,5.10271498,25745.0,25744.0,0.002]
[1693951430124,5.10391498,25745.0,25744.0,0.002]
[1693951430334,5.10373498,25745.0,25744.0,0.002]
[1693951430544,5.10331498,25745.0,25744.0,0.002]
[1693951430905,5.10337498,25745.0,25744.0,0.002]
[1693951431111,5.10361498,25745.0,25744.0,0.002]
[1693951431310,5.10313498,25745.0,25744.0,0.002]
[1693951431568,5.10301498,25745.0,25744.0,0.002]
[1693951431869,5.10289498,25745.0,25744.0,0.002]
[1693951432075,5.10295498,25745.0,25744.0,0.002]